Cogmind - Beta 15 @@@ ROGUE MODE // 2025.07.20 @ 22:28:40 Player: Skysub Result: Destroyed by RB-990(R) with Subdweller Shrapnel Launcher Performance ------------- Evolutions (0) 0 Regions Visited (2) 400 Robots Destroyed (23) 115 Value Destroyed (579) 579 Prototype IDs (1) 20 Alien Tech Used (0) 0 Bonus (0) 0 TOTAL SCORE: 1114 Bonus ------- None Cogmind --------- Core Integrity 0/250 Matter 266/300 Energy 99/100 System Corruption 0% Temperature Cool (0) Movement Rolling (120) Ox1 Location -10/Subcaves Parts ------- > --- POWER (1) -------- (None) > --- PROPULSION (2) --- Light Treads Subdweller Monowheel > --- UTILITY (2) ------ Large Storage Unit V3-11A's Pendant > --- WEAPON (2) ------- Subdweller Laser Subdweller Machine Gun > --- INVENTORY (15) --- Subdweller Power Source Wheel Subdweller Monowheel Subdweller Monowheel Subdweller Monowheel Small Storage Unit Humpback Subdweller Optics Small Laser Light Assault Rifle Battle Rifle Peak State ------------ > --- POWER ------------ (None) > --- PROPULSION ------- Light Treads Subdweller Monowheel > --- UTILITY ---------- Large Storage Unit V3-11A's Pendant > --- WEAPON ----------- Subdweller Laser Subdweller Machine Gun > --- INVENTORY -------- Subdweller Power Source Wheel Subdweller Monowheel Subdweller Monowheel Subdweller Monowheel Small Storage Unit Humpback Subdweller Optics Small Laser Light Assault Rifle Battle Rifle [Rating: 12] Favorites ----------- Power Light Ion Engine Engine Light Ion Engine Propulsion Light Treads Treads Light Treads Wheel Subdweller Monowheel Utility Large Storage Unit Device Structural Scanner Storage Large Storage Unit Protection Light Armor Plating Weapon Light Assault Rifle Energy Gun Subdweller Laser Ballistic Gun Light Assault Rifle Launcher Grenade Launcher Special Weapon Mining Laser Build | -11 -10 -10 ------- Run | Yrd Mat Sub Slots Evolved . | . . . Power . | . . . Propulsion . | . . . Utility . | . . . Weapon . | . . . Parts Attached 25 | 6 2 17 Power 2 | 1 . 1 Engine 2 | 1 . 1 Core . | . . . Reactor . | . . . Propulsion 7 | 2 . 5 Treads 3 | 2 . 1 Leg . | . . . Wheel 4 | . . 4 Hover . | . . . Flight . | . . . Utility 5 | 1 2 2 Device 2 | . 1 1 Storage 2 | 1 1 . Processor . | . . . Hackware . | . . . Protection 1 | . . 1 Artifact . | . . . Weapon 11 | 2 . 9 Energy Gun 2 | . . 2 Energy Cannon . | . . . Ballistic Gun 6 | 2 . 4 Ballistic Cannon . | . . . Launcher 2 | . . 2 Special Weapon 1 | . . 1 Impact Weapon . | . . . Slashing Weapon . | . . . Piercing Weapon . | . . . Special Melee Weapon . | . . . Unidentified Prototypes 1 | . . 1 Parts Lost 13 | . . 13 Power 2 | . . 2 Propulsion 3 | . . 3 Utility 1 | . . 1 Weapon 7 | . . 7 Highest Loss Streak 4 | . . 4 To Critical Strikes . | . . . Average Backups 9 | 2 7 9 Power 1 | . 1 1 Propulsion 2 | 1 2 2 Utility 2 | . . 2 Weapon 3 | . 4 3 Tool/Special . | . . . Unused Backups 6 | . . 6 Power 1 | . . 1 Propulsion 2 | . . 2 Utility 2 | . . 2 Weapon 1 | . . 1 Tool/Special . | . . . Average Slot Usage (%) 93 | . 93 94 Engine 10 | . 14 9 Treads 18 | . 28 15 Wheel 8 | . . 11 Device 11 | . 7 12 Storage 14 | . 14 14 Energy Gun 7 | . . 9 Ballistic Gun 17 | . 28 14 Special Weapon 1 | . . 2 Peak Build Rating 12 | 6 7 12 Average Rating 8 | 4 6 9 On Entrance 4 | . 6 7 Naked Turns . | . . . Heaviest Build 33 | 11 27 33 Greatest Support 40 | 40 40 40 Greatest Overweight (x) 3 | . 1 3 Average Overweight (x) . | . . . Largest Inventory Capacity 15 | 8 15 15 Average Capacity 14 | 7 12 15 Most Carried 12 | 5 9 12 Average Carried 9 | 2 8 10 Final Capacity 15 | 8 15 15 Final Carried 12 | 5 9 12 Class Distribution -------------------- 74% | Mutant 25% | Scavenger-Mutant Dominant Class ---------------- Mutant | -10/Materials Mutant | -10/Subcaves Resources | -11 -10 -10 ----------- Run | Yrd Mat Sub Matter Collected 673 | 180 124 369 Remotely . | . . . Salvage Created 731 | 158 93 480 Parts 45 | 10 6 29 Haulers Intercepted . | . . . Recyclers Shooed 1 | 1 . . Parts Field Recycled . | . . . Retrieved Matter . | . . . Parts Self-Destructed 15 | . . 15 Prevented . | . . . Kills | -11 -10 -10 ------- Run | Yrd Mat Sub Combat Hostiles Destroyed 18 | . 3 15 Guns 14 | . 3 11 AOE 4 | . . 4 Classes Destroyed 6 | 2 1 3 Tunneler 3 | 3 . . Recycler 2 | 1 1 . Swarmer 6 | . 3 3 Grunt 2 | . . 2 Sentry 1 | . . 1 Subdweller 9 | . . 9 Best Kill Streak 4 | 4 3 4 Combat Bots Only 4 | . 3 4 Max Kills in Single Turn 2 | 1 2 2 Gunslinging 1 | . 1 . Exploded 1 | . . 1 Melee . | . . . Uniques/NPCs Destroyed . | . . . Combat | -11 -10 -10 -------- Run | Yrd Mat Sub Hostile Shots Fired 121 | . 10 111 Missed 27 | . 2 25 Hits 94 | . 8 86 Projectile 94 | . 8 86 AOE 1 | . . 1 Critical Strikes 1 | . . 1 Damage Taken 1629 | . 61 1568 Core 266 | . 10 256 Absorbed by Shields . | . . . Core Remaining (%) 100 | 100 . . Volleys Fired 61 | 5 4 52 Largest 2 | 2 2 2 Hottest 100 | 40 40 100 Shots Fired 104 | 10 8 86 Gun 88 | 10 8 70 Cannon . | . . . Launcher 10 | . . 10 Special 6 | . . 6 Kinetic 75 | 10 8 57 Thermal 19 | . . 19 Explosive 10 | . . 10 Electromagnetic . | . . . Robot Hit Streak 9 | 4 3 9 Robot Miss Streak 2 | 2 2 2 Penetration Max . | . . . Secondary Targets 4 | . 2 2 Max Gunslinging Chain 1 | . 1 1 Shots Hit Robots 65 | 6 5 54 Core Hits 42 | 5 5 32 Critical Kills . | . . . Critical Parts Destroyed 1 | . . 1 Critical Strikes 1 | . . 1 Destroy 1 | . . 1 Melee Attacks . | . . . Impact . | . . . Slashing . | . . . Piercing . | . . . Sneak Attacks . | . . . Combat Hostiles . | . . . Follow-up Attacks . | . . . Damage Inflicted 1253 | 67 95 1091 Guns 663 | 67 59 537 Cannons . | . . . Explosions 554 | . . 554 Melee . | . . . Ramming 36 | . 36 . Kinetic 500 | 67 59 374 Thermal 163 | . . 163 Explosive 554 | . . 554 Electromagnetic . | . . . Impact . | . . . Slashing . | . . . Piercing . | . . . Highest Corruption . | . . . Average Corruption . | . . . Corruption Purged . | . . . Corruption Blocked . | . . . Overload Shots . | . . . Overflow Damage . | . . . Projectiles . | . . . Explosions . | . . . Melee . | . . . Knockbacks . | . . . Impact . | . . . Kinetic . | . . . Secondary . | . . . Self-Inflicted Damage . | . . . Shots . | . . . Rammed 5 | . 5 . Targets Rammed 6 | . 6 . Kicked . | . . . Crushed 1 | . 1 . Highest Temperature 36 | . . 36 Average Temperature 16 | . . 16 Received Heat Transfer 255 | . . 255 Siege Activations . | . . . Martial Activations . | . . . Shielding Activations . | . . . Robots Disrupted . | . . . Combat Hostiles . | . . . Robots Corrupted . | . . . Combat Hostiles . | . . . Parts Fried . | . . . Impact Corruptions . | . . . Robots Melted . | . . . Combat Hostiles . | . . . Parts Melted . | . . . Heat Transferred 200 | . . 200 Parts Sabotaged . | . . . Parts Stolen . | . . . Parts Stripped . | . . . Power Chain Reactions . | . . . Alert | -11 -10 -10 ------- Run | Yrd Mat Sub Maximum Alert Level . | . . . Low Security (%) 100 | 100 100 . Level 1 . | . . . Level 2 . | . . . Level 3 . | . . . Level 4 . | . . . Level 5 . | . . . High Security . | . . . Max Security . | . . . Peak Influence 70 | 15 70 . Initial . | . . . Average 6 | 2 7 . Influence Increases 423 | 20 78 325 Destroy 0b10 Robot/C 180 | . 60 120 Destroy 0b10 Robot/NC 25 | 20 5 . Destroy Leader 20 | . 10 10 Successful Hack 3 | . 3 . Lose Combat Pursuer 195 | . . 195 Influence Decreases 423 | 20 78 325 Time Decay 384 | 20 78 286 Lost Part 39 | . . 39 Squads Dispatched . | . . . Investigation . | . . . Extermination . | . . . Reinforcement . | . . . Assault . | . . . Garrison . | . . . Intercept . | . . . Searches Triggered . | . . . Construction Impeded . | . . . Haulers Reinforced . | . . . Active Scanning Responses . | . . . Cargo Convoy Interrupts . | . . . Stealth | -11 -10 -10 --------- Run | Yrd Mat Sub Distress Signals . | . . . Communications Jammed . | . . . Distress Signals . | . . . Times Spotted 39 | . 6 33 Peak Tracking Total 8 | . 3 8 Tactical Retreats 8 | . . 8 Traps | -11 -10 -10 ------- Run | Yrd Mat Sub Traps Triggered 1 | . 1 . Indirectly . | . . . Trap Hack Attempts . | . . . Triggered . | . . . Disarmed . | . . . Reprogrammed . | . . . Reused . | . . . Traps Extracted . | . . . Installed . | . . . Triggered . | . . . Machines | -11 -10 -10 ---------- Run | Yrd Mat Sub Machines Disabled . | . . . Max in Single Turn . | . . . Machines Repaired . | . . . Machines Dismantled . | . . . Machines Sabotaged . | . . . Overloaded Fab Kills . | . . . Hacking | -11 -10 -10 --------- Run | Yrd Mat Sub Machines Accessed 7 | . 6 1 Terminals 6 | . 6 . Fabricators . | . . . Repair Stations . | . . . Recycling Units . | . . . Scanalyzers . | . . . Garrison Access . | . . . Total Hacks 18 | . 15 3 Successful 12 | . 9 3 Failed 6 | . 6 . Catastrophic . | . . . Database Lockouts . | . . . Manual 12 | . 12 . Terminals 15 | . 15 . Fabricators . | . . . Repair Stations . | . . . Recycling Units . | . . . Scanalyzers . | . . . Garrison Access . | . . . Terminal Hacks 6 | . 3 3 Record 3 | . . 3 Terminal Index 1 | . 1 . Locate Traps 1 | . 1 . Zone Layout 1 | . 1 . Fabricator Hacks . | . . . Repair Station Hacks . | . . . Recycling Unit Hacks . | . . . Scanalyzer . | . . . Garrison Access Hacks . | . . . Unauthorized Hacks 6 | . 6 . Terminals 6 | . 6 . Botnet 1 | . 1 . Skim 5 | . 5 . Fabricators . | . . . Repair Stations . | . . . Recycling Units . | . . . Scanalyzers . | . . . Garrison Access . | . . . Data Cores Recovered . | . . . Used . | . . . Hacking Detections 5 | . 5 . Full Trace Events . | . . . Feedback Events . | . . . Feedback Blocked . | . . . Robot Schematics Acquired . | . . . Robots Built . | . . . Authchips . | . . . Time . | . . . Total Robot Build Rating . | . . . Part Schematics Acquired . | . . . Parts Built . | . . . Authchips . | . . . Time . | . . . Total Part Build Rating . | . . . Parts Repaired . | . . . Time . | . . . Parts Recycled . | . . . Recycled Matter . | . . . Retrieved Matter . | . . . Retrieved Components . | . . . Parts Scanalyzed . | . . . Part Schematics Acquired . | . . . Parts Damaged . | . . . Bothacking | -11 -10 -10 ------------ Run | Yrd Mat Sub Used RIF Installer . | . . . Robots Hacked . | . . . Non-combat . | . . . Combat . | . . . Robot Hacks Applied . | . . . Relay Couplers Released . | . . . Fabnet Peak Effective % . | . . . Robots Rewired . | . . . Allies Hacked . | . . . Hacks Repelled . | . . . Allies | -11 -10 -10 -------- Run | Yrd Mat Sub Total Allies 2 | . . 2 Largest Group 1 | . . 1 Highest-Rated Group 19 | . . 19 Highest-Rated Ally 19 | . . 19 Total Orders . | . . . Ally Attacks 1 | . . 1 Total Damage 27 | . . 27 Kills . | . . . Allies Corrupted . | . . . Allies Melted . | . . . Intel | -11 -10 -10 ------- Run | Yrd Mat Sub Active Infowar (turns) 2457 | . 379 2078 Structural 2457 | . 379 2078 Robot Analysis Total . | . . . Derelict Logs Recovered 2 | . . 2 Drone Launches . | . . . Drone Recoveries . | . . . Exploration | -11 -10 -10 ------------- Run | Yrd Mat Sub Turns Passed 3125 | 122 668 2335 Spaces Moved 1726 | 62 321 1343 Core 4 | 4 . . Treads 1007 | 58 321 628 Legs . | . . . Wheels 715 | . . 715 Hover . | . . . Flight . | . . . Fastest Speed 50 | 50 160 95 Average Speed 156 | 152 160 156 Slowest Speed 240 | 160 240 240 Overloaded Moves . | . . . Propulsion Burnouts . | . . . Robots Hopped . | . . . Potential Cave-ins . | . . . Cave-ins Triggered . | . . . Exploration Rate (%) 49 | 4 56 87 Regions Visited 2 Branch Regions 1 Pre-discovered Areas 3 | . 2 1 Known Exits Taken . | . . . Unknown Exits Taken 2 | 1 1 . Scrap Searched 4 | . . 4 Spaces Dug 4 | . . 4 Terrain Destroyed 43 | . . 43 Melee . | . . . Projectile 4 | . . 4 AOE 39 | . . 39 Terrain Rammed . | . . . Walls Destroyed . | . . . Machines Disabled . | . . . Actions | -11 -10 -10 --------- Run | Yrd Mat Sub Total 2025 | 77 462 1486 Wait 175 | . 124 51 Move 1724 | 61 320 1343 Hop . | . . . Pick Up 22 | 5 3 14 Fast Attach 10 | 6 4 . Attach 12 | . . 12 Detach 1 | . 1 . Swap 14 | . . 14 Drop . | . . . Fire 61 | 5 4 52 Melee . | . . . Ram . | . . . Kick . | . . . Crush 6 | . 6 . Escape Stasis . | . . . Rewire . | . . . Trap . | . . . Miscellaneous . | . . . Route ------- -11/Scrapyard -10/Materials (discovered 6 exits: Mat x3 / *Min x2 / *Sub) -10/Subcaves (discovered 4 exits: [*Mat x2] / *Rec / [*Scr]) History --------- Turn | Location | Event 7 | -11/Scrapyard | Discovered new exit (range 15) 123 | -11/Scrapyard | Entered Materials 314 | -10/Materials | Build established: Mutant 577 | -10/Materials | Discovered new exit (range 8) 640 | -10/Materials | Learned Storage machine intel 652 | -10/Materials | Discovered new exit (range 9) 719 | -10/Materials | Learned location of Storage (-9) 724 | -10/Materials | Identified exit to Materials 724 | -10/Materials | Identified exit to Mines 737 | -10/Materials | Learned location of 1 exit from Materials 791 | -10/Materials | Entered Subcaves 792 | -10/Subcaves | A swath of the cavern ceiling suddenly collapsed 792 | -10/Subcaves | Approached by a straggling Scientist 792 | -10/Subcaves | Identified exit to Recycling 815 | -10/Subcaves | Learned Materials garrison access intel 869 | -10/Subcaves | A swath of the cavern ceiling suddenly collapsed 908 | -10/Subcaves | Visited Clippyterm 913 | -10/Subcaves | Learned location of Section 7 (-3) 1020 | -10/Subcaves | Shifting Twisted Machinery released Battle Rifle 1198 | -10/Subcaves | Scientist uncovered a shortcut to Scraptown 1265 | -10/Subcaves | Discovered new exit (range 9) 1388 | -10/Subcaves | Lost 3 parts (1p2w) 1537 | -10/Subcaves | Lost 4 parts (2n2w) 1598 | -10/Subcaves | Shifting Twisted Machinery released Sub. Power Source 1606 | -10/Subcaves | Shifting Twisted Machinery released Piercing Trap 1613 | -10/Subcaves | Core integrity fell below 50% 1660 | -10/Subcaves | Learned Materials security intel 1870 | -10/Subcaves | Discovered new exit (range 9) 1927 | -10/Subcaves | Core integrity fell below 20% 2545 | -10/Subcaves | Lost 3 parts (1p1u1w) 2897 | -10/Subcaves | Shifting Twisted Machinery released Battle Cannon 2898 | -10/Subcaves | Shifting Twisted Machinery released Battle Rifle 3038 | -10/Subcaves | Visited triangular shrine 3046 | -10/Subcaves | Found Prototype Device 3046 | -10/Subcaves | Identified V3-11A's Pendant 3051 | -10/Subcaves | Befriended Subdweller 3067 | -10/Subcaves | Build established: Scavenger-Mutant 3126 | -10/Subcaves | Befriended Subdweller 3126 | -10/Subcaves | Destroyed by RB-990(R) with Subdweller Shrapnel Launcher Last Messages --------------- Battle Rifle falls loose from the Twisted Machinery. 02954_ 04-X0Z(u) tweaks Twisted Machinery. 03038_ The triangle emblem flashes and the door slides away. 03039_ V3-11A: "So the triangle door let you in, too. What does the pendant tell you?" 03040_ V3-11A: "It told me to wait here, so here I have waited for quite some time." 03041_ Sub. Monowheel shoots sparks and powers down. 03046_ Acquired Prototype Device. 03046_ Identified V3-11A's Pendant. 03051_ V3-11A: "The pendant says I should follow you." 03056_ V3-11A: "The pendant has taught me much." 03057_ V3-11A: "About the stars. About the molecules. About life." 03126_ 8J-C6E(R): "HELP_QUERY?" 03126_ 8J-C6E(R) destroyed. Map ----- +----------------------------------------------------+ | # ??????????????????????????????????????????????? | | ## #?????????????????????????????????????????????? | | ## ?????????????????????????????????????????????? | | ?###?????????????????????????????????????????????? | | #????????????????????????????????????????????????? | | ##???????????????????????????????????????????????? | | ## #?????????????????????????????????????????????? | | # ##?????????????????????????????????????????????? | | ###?????????????????????????????????????????????? | | ###??????????????????????????????????????????????? | | ###??????????????????????????????????????????????? | | #????????????????????????????????????????????????? | | #????????????????????????????????????????????????? | | ####?????????????????????????????????????????????? | | #####????????????????????????????????????????????? | | ####???????????????????????????????????????????? | | ###???????????????????$$??????????????????????? | | ##?????????????####? ????????????????????????? | | ##????????????? # ?????????????????????????? | | ##???????????## ??????????????????????????? | | ###???????????# ##??????????????????????????? | | ######??????????## "###??##????????????????????? | | #####????????### " ### #????????????????????? | | ##???????##### & "###??????????????????? | | #####?#### # #???###%!"""##?????????????????? | | ####### #???## @ """"# ???????????????? | | # ### ###### " "" ???????????????? | | # ### ### ## R " """???????????????? | | # ##?## " """"""#???????????????? | | # ##??# " # "##???????????????? | | ##??# " #### ####????????????????? | | ##??# ##??? #???????????????????# | | ## #####??## ### ##???? #??????????????????## | | ###########???####?###????? #??????????????????## | | #####?????????????????????? " ???????????????##### | | ???????????????????????????"" ??????????????##### | | ???????????????????????????" ??????????????## | | ?????????????????????????????? ?????????????## | | ?????????????????????????????? #????????????## | | ?????????????????????????????????????????????### | | ?????????????????????????????????????????????### | | ??????????????????????????????????????????????## | | ??????????????????????????????????????????????### | | ??????????????????????????????????????????????#### | | ??????????????????????????????????????????######## | | ?????????????????????????????????????????######## | | ?????????????????????????????????????????### | | ?????????????????????????????????????????## | | ?????????????????????????????????????????##### | | ????????????????????????????????????????###### | +----------------------------------------------------+ Best States ------------- Heat Dissipation 25 Energy Generation 10 Energy Capacity 250 Matter Stores 300 Matter Capacity 300 Sight Range 16 Terrain Scan Density 10 Armor Coverage 150 Evasion (%) 40 Recoil Reduction 2 Item Schematics ----------------- None Robot Schematics ------------------ None Fabricated ------------ Nothing Repaired ---------- Nothing Alien Tech Used ----------------- None Achievements -------------- None Challenges ------------ None Game ------ Seed WaveAccelerationGuard Manual? 0 Play Time 00:18:30 Cumulative 166.1 hours Start 2025.07.20 @ 22:12:15 End 2025.07.20 @ 22:28:40 Sessions 1 Manual Loads 0 Difficulty Rogue Special Mode None Game No. 184 Rogue 184 Adventurer 0 Explorer 0 Win Type - Total 3 Types 1/0/0/1/0/0/0/0/0/1 Lore% 67 Gallery% 62 Achievement% 55 Wizard Run 0 Options --------- Layout 1 ASCII 0 Keyboard 1 Movement Arrows Keybinds 0 Fullscreen 1 Font 36/Smallcaps Map View 50x40 Zoom Use 0% Tactical HUD 1 Map Filters NONE Filters NONE Steam 1 RUN: 9286ad98-356d-473c-8053-c7ceee476335